fUSD/lending_fUSD_20260529
["ID","MTS","AMOUNT","RATE_DAILY","PERIOD"]
[423316792,1780054256000,-500.0,0.00027397,2]
[423316819,1780054256000,-151.0,0.00027397,2]
[423316817,1780054256000,-151.0,0.00027397,2]
[423316820,1780054256000,-151.0,0.00027397,2]
[423316833,1780054256000,-1298.758075,0.00027397,2]
[423316835,1780054256000,-1298.758075,0.00027397,2]
[423316829,1780054256000,-151.0,0.00027397,2]
[423316830,1780054256000,-248.908852,0.00027397,2]
[423316832,1780054256000,-1298.758075,0.00027397,2]
[423316838,1780054256000,-1298.758075,0.00027397,2]
[423316827,1780054256000,-151.0,0.00027397,2]
[423316834,1780054256000,-1298.758075,0.00027397,2]
[423316837,1780054256000,-1298.758075,0.00027397,2]
[423316831,1780054256000,-959.03,0.00027397,2]
[423316828,1780054256000,-288.517613,0.00027397,2]
[423316836,1780054256000,-1298.758075,0.00027397,2]
[423316840,1780054256000,-1298.758075,0.00027397,2]
[423316850,1780054256000,-1298.758075,0.00027397,2]
[423316839,1780054256000,-1298.758075,0.00027397,2]
[423316841,1780054256000,-1298.758075,0.00027397,2]
[423316842,1780054256000,-1298.758075,0.00027397,2]
[423316843,1780054256000,-1298.758075,0.00027397,2]
[423316844,1780054256000,-1298.758075,0.00027397,2]
[423316846,1780054256000,-1298.758075,0.00027397,2]
[423316845,1780054256000,-1298.758075,0.00027397,2]
[423316849,1780054256000,-1298.758075,0.00027397,2]
[423316790,1780054256000,-500.0,0.00027397,2]
[423316847,1780054256000,-1298.758075,0.00027397,2]
[423316821,1780054256000,-151.0,0.00027397,2]
[423316818,1780054256000,-151.0,0.00027397,2]
[423316848,1780054256000,-1298.758075,0.00027397,2]
[423316816,1780054256000,-151.0,0.00027397,2]
[423316815,1780054256000,-151.0,0.00027397,2]
[423316793,1780054256000,-500.0,0.00027397,2]
[423316797,1780054256000,-541.56329746,0.00027397,2]
[423316796,1780054256000,-150.0,0.00027397,2]
[423316795,1780054256000,-441.47620498,0.00027397,2]
[423316798,1780054256000,-2270.93149805,0.00027397,2]
[423316800,1780054256000,-1500.0,0.00027397,2]
[423316802,1780054256000,-10000.0,0.00027397,10]
[423316794,1780054256000,-500.0,0.00027397,2]
[423316799,1780054256000,-224.76907207,0.00027397,2]
[423316804,1780054256000,-10000.0,0.00027397,10]
[423316803,1780054256000,-10000.0,0.00027397,10]
[423316805,1780054256000,-10000.0,0.00027397,10]
[423316791,1780054256000,-500.0,0.00027397,2]
[423316809,1780054256000,-10000.0,0.00027397,10]
[423316814,1780054256000,-300.0,0.00027397,2]
[423316824,1780054256000,-151.0,0.00027397,2]
[423316825,1780054256000,-151.0,0.00027397,2]
[423316826,1780054256000,-151.0,0.00027397,2]
[423316806,1780054256000,-10000.0,0.00027397,10]
[423316823,1780054256000,-151.0,0.00027397,2]
[423316822,1780054256000,-151.0,0.00027397,2]
[423316808,1780054256000,-10000.0,0.00027397,10]
[423316810,1780054256000,-10000.0,0.00027397,10]
[423316813,1780054256000,-1000.0,0.00027397,20]
[423316811,1780054256000,-745.62,0.00027397,15]
[423316807,1780054256000,-10000.0,0.00027397,10]
[423316812,1780054256000,-500.7,0.00027397,2]
[423316898,1780054257000,-4431.499608,0.00027397,2]
[423316899,1780054257000,-4431.499608,0.00027397,2]
[423316890,1780054257000,-1154.137718,0.00027397,2]
[423316882,1780054257000,-1154.137718,0.00027397,2]
[423316885,1780054257000,-1154.137718,0.00027397,2]
[423316884,1780054257000,-1154.137718,0.00027397,2]
[423316881,1780054257000,-1154.137718,0.00027397,2]
[423316880,1780054257000,-1154.137718,0.00027397,2]
[423316887,1780054257000,-1154.137718,0.00027397,2]
[423316886,1780054257000,-1154.137718,0.00027397,2]
[423316883,1780054257000,-1154.137718,0.00027397,2]
[423316901,1780054257000,-4431.499608,0.00027397,2]
[423316895,1780054257000,-4431.499608,0.00027397,2]
[423316891,1780054257000,-1154.13771922,0.00027397,2]
[423316889,1780054257000,-1154.137718,0.00027397,2]
[423316892,1780054257000,-4431.499608,0.00027397,2]
[423316893,1780054257000,-4431.499608,0.00027397,2]
[423316896,1780054257000,-4431.499608,0.00027397,2]
[423316897,1780054257000,-4431.499608,0.00027397,2]
[423316894,1780054257000,-4431.499608,0.00027397,2]
[423316903,1780054257000,-4431.499608,0.00027397,2]
[423316904,1780054257000,-4431.499608,0.00027397,2]
[423316905,1780054257000,-4431.499608,0.00027397,2]
[423316908,1780054257000,-4431.499608,0.00027397,2]
[423316879,1780054257000,-1154.137718,0.00027397,2]
[423316900,1780054257000,-4431.499608,0.00027397,2]
[423316877,1780054257000,-1154.137718,0.00027397,2]
[423316876,1780054257000,-1154.137718,0.00027397,2]
[423316878,1780054257000,-1154.137718,0.00027397,2]
[423316851,1780054257000,-1298.758079,0.00027397,2]
[423316852,1780054257000,-151.0,0.00027397,2]
[423316853,1780054257000,-151.0,0.00027397,2]
[423316863,1780054257000,-151.0,0.00027397,2]
[423316854,1780054257000,-151.0,0.00027397,2]
[423316855,1780054257000,-151.0,0.00027397,2]
[423316861,1780054257000,-151.0,0.00027397,2]
[423316860,1780054257000,-151.0,0.00027397,2]
[423316856,1780054257000,-151.0,0.00027397,2]
[423316859,1780054257000,-151.0,0.00027397,2]
[423316857,1780054257000,-151.0,0.00027397,2]
[423316858,1780054257000,-151.0,0.00027397,2]
[423316862,1780054257000,-151.0,0.00027397,2]
[423316865,1780054257000,-151.0,0.00027397,2]
[423316875,1780054257000,-174.112257,0.00027397,2]
[423316866,1780054257000,-151.0,0.00027397,2]
[423316868,1780054257000,-151.0,0.00027397,2]
[423316867,1780054257000,-1154.137718,0.00027397,2]
[423316864,1780054257000,-212.157236,0.00027397,2]
[423316872,1780054257000,-1154.137718,0.00027397,2]
[423316871,1780054257000,-151.0,0.00027397,2]
[423316869,1780054257000,-151.0,0.00027397,2]
[423316870,1780054257000,-1154.137718,0.00027397,2]
[423316873,1780054257000,-151.0,0.00027397,2]
[423316874,1780054257000,-1154.137718,0.00027397,2]
[423316888,1780054257000,-1154.137718,0.00027397,2]
[423316910,1780054257000,-4431.499608,0.00027397,2]
[423316923,1780054257000,-1348.007108,0.00027397,2]
[423316911,1780054257000,-4431.499617,0.00027397,2]
[423316943,1780054257000,-1558.22054248,0.0002744,5]
[423316944,1780054257000,-1171.52,0.0002744,7]
[423316937,1780054257000,-1001.67328186,0.0002744,5]
[423316935,1780054257000,-1055.76211592,0.0002744,5]
[423316939,1780054257000,-1067.87575335,0.0002744,5]
[423316940,1780054257000,-1031.5403244,0.0002744,5]
[423316938,1780054257000,-1134.02953549,0.0002744,5]
[423316946,1780054257000,-1215.13,0.0002744,7]
[423316948,1780054257000,-500.0,0.00027466,60]
[423316947,1780054257000,-901.03,0.0002744,7]
[423316949,1780054257000,-280.0,0.00027466,60]
[423316953,1780054257000,-1142.96752026,0.00027489,5]
[423316954,1780054257000,-1072.07327677,0.00027489,5]
[423316950,1780054257000,-306.0,0.00027466,60]
[423316955,1780054257000,-1026.41782901,0.00027489,5]
[423316952,1780054257000,-1042.62635902,0.00027489,5]
[423316958,1780054257000,-1097.74465678,0.00027489,5]
[423316957,1780054257000,-1045.77473686,0.00027489,5]
[423316956,1780054257000,-1111.89765402,0.00027489,5]
[423316959,1780054257000,-1100.65102815,0.00027489,5]
[423316961,1780054257000,-1147.0978931,0.00027489,5]
[423316960,1780054257000,-1012.14555686,0.00027489,5]
[423316962,1780054257000,-1047.19964898,0.00027489,5]
[423316963,1780054257000,-1029.56229621,0.00027489,5]
[423316909,1780054257000,-4431.499608,0.00027397,2]
[423316941,1780054257000,-1097.44311003,0.0002744,5]
[423316945,1780054257000,-1393.3,0.0002744,7]
[423316951,1780054257000,-1053.04181779,0.00027489,5]
[423316942,1780054257000,-1072.46336231,0.0002744,5]
[423316936,1780054257000,-1057.58834728,0.0002744,5]
[423316907,1780054257000,-4431.499608,0.00027397,2]
[423316902,1780054257000,-4431.499608,0.00027397,2]
[423316912,1780054257000,-45267.49,0.00027397,10]
[423316914,1780054257000,-1348.007108,0.00027397,2]
[423316913,1780054257000,-37722.91,0.00027397,10]
[423316919,1780054257000,-1348.007108,0.00027397,2]
[423316917,1780054257000,-1348.007108,0.00027397,2]
[423316916,1780054257000,-1348.007108,0.00027397,2]
[423316915,1780054257000,-1348.007108,0.00027397,2]
[423316920,1780054257000,-1348.007108,0.00027397,2]
[423316918,1780054257000,-1348.007108,0.00027397,2]
[423316921,1780054257000,-31435.76,0.00027397,10]
[423316906,1780054257000,-4431.499608,0.00027397,2]
[423316931,1780054257000,-1035.89733901,0.0002744,5]
[423316924,1780054257000,-500.0,0.00027398,7]
[423316926,1780054257000,-3699.58,0.000274,7]
[423316925,1780054257000,-6580.74,0.000274,7]
[423316927,1780054257000,-55932.65,0.000274,14]
[423316928,1780054257000,-1000.0,0.00027402,7]
[423316929,1780054257000,-152.0,0.00027413,20]
[423316930,1780054257000,-1001.98111563,0.0002744,5]
[423316922,1780054257000,-1348.007108,0.00027397,2]
[423316933,1780054257000,-1091.35489468,0.0002744,5]
[423316932,1780054257000,-1001.28817822,0.0002744,5]
[423316934,1780054257000,-1089.29961117,0.0002744,5]
[423317010,1780054258000,-4866.73,0.00027744,7]
[423316998,1780054258000,-1000.0,0.00027615,7]
[423317012,1780054258000,-2167.96,0.00027751,7]
[423317002,1780054258000,-152.0,0.00027695,21]
[423316997,1780054258000,-4340.16,0.00027599,30]
[423316994,1780054258000,-2167.71,0.00027591,30]
[423316995,1780054258000,-2167.96,0.00027595,30]
[423316990,1780054258000,-176.55336733,0.0002755,30]
[423316996,1780054258000,-4323.53,0.00027595,30]
[423317000,1780054258000,-526.57,0.00027664,7]
[423317011,1780054258000,-2167.71,0.00027747,7]
[423316999,1780054258000,-526.57,0.00027639,2]
[423317001,1780054258000,-526.57,0.0002769,30]
[423317007,1780054258000,-3000.0,0.0002774,60]
[423317003,1780054258000,-150.04369711,0.00027702,30]
[423317008,1780054258000,-526.57,0.00027742,7]
[423317009,1780054258000,-3100.68,0.00027743,7]
[423317004,1780054258000,-526.57,0.00027716,2]
[423317006,1780054258000,-150.04369711,0.00027733,2]
[423317013,1780054258000,-4323.53,0.00027751,7]
[423317014,1780054258000,-4340.16,0.00027754,7]
[423317015,1780054258000,-150.0,0.00027768,2]
[423317017,1780054258000,-150.0,0.00027768,2]
[423317016,1780054258000,-235.0,0.00027768,2]
[423317018,1780054258000,-207.0,0.00027768,2]
[423317005,1780054258000,-600.17478844,0.00027733,2]
[423316992,1780054258000,-3100.68,0.00027586,30]
[423316964,1780054258000,-1082.88439758,0.00027489,5]
[423316993,1780054258000,-4866.73,0.00027588,30]
[423317024,1780054258000,-526.57,0.00027794,2]
[423316965,1780054258000,-1043.71339395,0.00027489,5]
[423316966,1780054258000,-1010.3659872,0.00027489,5]
[423316967,1780054258000,-1101.16933514,0.00027489,5]
[423316973,1780054258000,-1123.81105179,0.00027489,5]
[423316968,1780054258000,-1035.51091484,0.00027489,5]
[423316977,1780054258000,-1050.09312876,0.00027489,5]
[423316975,1780054258000,-1101.97595336,0.00027489,5]
[423316974,1780054258000,-1129.55704934,0.00027489,5]
[423316969,1780054258000,-1112.8968732,0.00027489,5]
[423316976,1780054258000,-1080.7800445,0.00027489,5]
[423316972,1780054258000,-1045.28027125,0.00027489,5]
[423316991,1780054258000,-176.55336733,0.0002755,2]
[423316970,1780054258000,-1145.64923955,0.00027489,5]
[423316987,1780054258000,-253.90669608,0.0002755,2]
[423316979,1780054258000,-1034.9578677,0.00027489,5]
[423316988,1780054258000,-253.90669608,0.0002755,30]
[423316980,1780054258000,-1079.62601419,0.00027489,5]
[423316981,1780054258000,-1141.16454583,0.00027489,5]
[423316982,1780054258000,-3226.0,0.000275,7]
[423316984,1780054258000,-351.39928105,0.0002755,2]
[423316978,1780054258000,-1035.95862749,0.00027489,5]
[423316986,1780054258000,-175.69964052,0.0002755,2]
[423316983,1780054258000,-150.0,0.00027521,2]
[423316985,1780054258000,-175.69964052,0.0002755,30]
[423316989,1780054258000,-353.10673466,0.0002755,2]
[423316971,1780054258000,-1146.69534043,0.00027489,5]
[423317022,1780054258000,-1000.0,0.00027781,7]
[423317034,1780054258000,-4866.73,0.00027901,2]
[423317023,1780054258000,-1000.0,0.00027786,7]
[423317051,1780054258000,-3638.0,0.00027981,2]
[423317050,1780054258000,-1225.0,0.00027981,2]
[423317054,1780054258000,-200.0,0.0002799,2]
[423317056,1780054258000,-1610.0,0.00027999,3]
[423317055,1780054258000,-1590.0,0.00027999,3]
[423317058,1780054258000,-6580.74,0.00028,7]
[423317057,1780054258000,-300.0,0.00028,28]
[423317061,1780054258000,-2393.57376006,0.00028,30]
[423317060,1780054258000,-576.8097954,0.00028,2]
[423317062,1780054258000,-160.0,0.00028,2]
[423317071,1780054258000,-600.0,0.00028,2]
[423317063,1780054258000,-643.0,0.00028,2]
[423317053,1780054258000,-200.0,0.0002799,2]
[423317065,1780054258000,-253.2423139,0.00028,20]
[423317064,1780054258000,-561.57,0.00028,2]
[423317067,1780054258000,-200.0,0.00028,7]
[423317066,1780054258000,-200.0,0.00028,20]
[423317070,1780054258000,-209.09056759,0.00028,30]
[423317068,1780054258000,-209.09056759,0.00028,10]
[423317019,1780054258000,-150.0,0.00027768,2]
[423317075,1780054258000,-526.47,0.00028002,30]
[423317073,1780054258000,-526.57,0.00028,30]
[423317072,1780054258000,-160.0,0.00028,10]
[423317074,1780054258000,-2000.0,0.00028,7]
[423317076,1780054258000,-526.57,0.00028026,2]
[423317077,1780054258000,-526.47,0.00028028,2]
[423317069,1780054258000,-209.09056759,0.00028,3]
[423317052,1780054258000,-200.0,0.0002799,2]
[423317078,1780054258000,-200.0,0.0002803,2]
[423317048,1780054258000,-1272.0,0.00027981,2]
[423317059,1780054258000,-3699.58,0.00028,7]
[423317020,1780054258000,-233.0,0.00027768,2]
[423317025,1780054258000,-55932.65,0.000278,14]
[423317036,1780054258000,-2167.96,0.00027907,2]
[423317035,1780054258000,-2167.71,0.00027904,2]
[423317027,1780054258000,-526.57,0.00027845,30]
[423317026,1780054258000,-526.57,0.00027819,7]
[423317028,1780054258000,-526.57,0.00027871,2]
[423317029,1780054258000,-526.47,0.00027875,2]
[423317032,1780054258000,-526.47,0.000279,7]
[423317030,1780054258000,-796.7,0.00027882,7]
[423317031,1780054258000,-526.57,0.00027897,7]
[423317021,1780054258000,-526.57,0.00027768,30]
[423317038,1780054258000,-4340.16,0.0002791,2]
[423317033,1780054258000,-3100.68,0.000279,2]
[423317045,1780054258000,-152.0,0.00027976,22]
[423317047,1780054258000,-150.0,0.0002798,2]
[423317042,1780054258000,-526.47,0.00027951,2]
[423317043,1780054258000,-155.81,0.00027959,30]
[423317046,1780054258000,-526.47,0.00027977,7]
[423317044,1780054258000,-526.57,0.00027974,7]
[423317040,1780054258000,-526.47,0.00027926,30]
[423317039,1780054258000,-526.57,0.00027923,30]
[423317037,1780054258000,-4323.53,0.00027907,2]
[423317041,1780054258000,-526.57,0.00027949,2]
[423317049,1780054258000,-525.0,0.00027981,2]
[423317107,1780054259000,-2500.0,0.00028082,120]
[423317110,1780054259000,-3137.0,0.00028082,120]
[423317103,1780054259000,-150.0,0.00028081,2]
[423317102,1780054259000,-150.0,0.00028081,2]
[423317104,1780054259000,-150.0,0.00028081,2]
[423317105,1780054259000,-294.50977652,0.00028081,2]
[423317109,1780054259000,-1000.0,0.00028082,120]
[423317108,1780054259000,-2046.70431921,0.00028082,120]
[423317111,1780054259000,-1000.0,0.00028082,3]
[423317118,1780054259000,-526.71,0.0002813,7]
[423317115,1780054259000,-526.57,0.00028104,2]
[423317114,1780054259000,-526.47,0.00028104,2]
[423317113,1780054259000,-1000.0,0.00028082,3]
[423317117,1780054259000,-526.56,0.0002813,7]
[423317116,1780054259000,-200.0,0.00028108,2]
[423317119,1780054259000,-151.0,0.00028145,7]
[423317122,1780054259000,-3100.68,0.00028214,7]
[423317106,1780054259000,-483.50090814,0.00028082,120]
[423317112,1780054259000,-1000.0,0.00028082,3]
[423317100,1780054259000,-150.0,0.00028081,2]
[423317090,1780054259000,-526.47,0.00028079,30]
[423317099,1780054259000,-150.0,0.00028081,2]
[423317120,1780054259000,-200.0,0.000282,7]
[423317082,1780054259000,-526.47,0.00028053,7]
[423317083,1780054259000,-3100.68,0.00028057,30]
[423317081,1780054259000,-526.57,0.00028052,7]
[423317079,1780054259000,-200.0,0.0002803,2]
[423317080,1780054259000,-310.43374218,0.0002803,2]
[423317085,1780054259000,-2167.71,0.0002806,30]
[423317087,1780054259000,-4323.53,0.00028063,30]
[423317092,1780054259000,-150.0,0.00028081,2]
[423317101,1780054259000,-150.0,0.00028081,2]
[423317094,1780054259000,-150.0,0.00028081,2]
[423317095,1780054259000,-150.0,0.00028081,2]
[423317089,1780054259000,-526.57,0.00028078,30]
[423317086,1780054259000,-2167.96,0.00028063,30]
[423317093,1780054259000,-150.0,0.00028081,2]
[423317088,1780054259000,-4340.16,0.00028066,30]
[423317091,1780054259000,-200.0,0.0002808,2]
[423317096,1780054259000,-150.0,0.00028081,2]
[423317098,1780054259000,-150.0,0.00028081,2]
[423317097,1780054259000,-150.0,0.00028081,2]
[423317084,1780054259000,-4866.73,0.00028058,30]
[423317125,1780054259000,-2167.96,0.00028219,7]
[423317127,1780054259000,-4340.16,0.00028221,7]
[423317121,1780054259000,-55932.65,0.000282,14]
[423317146,1780054259000,-4340.16,0.00028377,2]
[423317152,1780054259000,-1300.0,0.00028503,120]
[423317162,1780054259000,-156.73145998,0.00028522,7]
[423317161,1780054259000,-158.81553262,0.00028522,7]
[423317153,1780054259000,-1300.0,0.00028503,120]
[423317159,1780054259000,-164.33354146,0.00028522,7]
[423317156,1780054259000,-199.70068572,0.00028522,7]
[423317151,1780054259000,-500.0,0.000285,2]
[423317154,1780054259000,-1169.0,0.00028503,120]
[423317157,1780054259000,-186.43361922,0.00028522,7]
[423317158,1780054259000,-175.0478619,0.00028522,7]
[423317155,1780054259000,-578.22484893,0.00028516,30]
[423317163,1780054259000,-180.5540203,0.00028522,7]
[423317165,1780054259000,-158.64784682,0.00028524,7]
[423317166,1780054259000,-153.39509021,0.00028524,7]
[423317164,1780054259000,-189.34574606,0.00028524,7]
[423317167,1780054259000,-182.08287548,0.00028524,7]
[423317168,1780054259000,-200.04971125,0.00028524,7]
[423317126,1780054259000,-4323.53,0.00028219,7]
[423317141,1780054259000,-3100.68,0.00028371,2]
[423317150,1780054259000,-168.09,0.00028493,2]
[423317160,1780054259000,-153.02264896,0.00028522,7]
[423317145,1780054259000,-4323.53,0.00028375,2]
[423317123,1780054259000,-4866.73,0.00028215,7]
[423317144,1780054259000,-2167.96,0.00028375,2]
[423317124,1780054259000,-2167.71,0.00028217,7]
[423317129,1780054259000,-1136.38,0.00028263,7]
[423317138,1780054259000,-722.78106116,0.00028355,2]
[423317130,1780054259000,-1351.5,0.00028263,7]
[423317132,1780054259000,-874.0,0.00028263,7]
[423317128,1780054259000,-152.0,0.00028257,23]
[423317133,1780054259000,-7567.4,0.00028267,2]
[423317134,1780054259000,-3000.0,0.00028288,60]
[423317131,1780054259000,-1178.68,0.00028263,7]
[423317136,1780054259000,-1590.0,0.00028319,3]
[423317137,1780054259000,-2891.12424466,0.00028355,2]
[423317139,1780054259000,-200.0,0.00028361,2]
[423317142,1780054259000,-4866.73,0.00028372,2]
[423317147,1780054259000,-15000.0,0.00028463,7]
[423317140,1780054259000,-203.0,0.00028362,120]
[423317148,1780054259000,-644.79446245,0.00028484,2]
[423317135,1780054259000,-444.2510982,0.00028297,120]
[423317143,1780054259000,-2167.71,0.00028373,2]
[423317149,1780054259000,-804.17102365,0.00028484,2]
[423317209,1780054260000,-6580.74,0.000286,7]
[423317207,1780054260000,-314.89619037,0.00028561,7]
[423317199,1780054260000,-165.28783929,0.00028561,7]
[423317201,1780054260000,-208.83692504,0.00028561,7]
[423317204,1780054260000,-192.52922732,0.00028561,7]
[423317200,1780054260000,-153.44131016,0.00028561,7]
[423317206,1780054260000,-172.18046261,0.00028561,7]
[423317202,1780054260000,-299.69907665,0.00028561,7]
[423317205,1780054260000,-205.89387837,0.00028561,7]
[423317208,1780054260000,-681.17487959,0.00028571,30]
[423317203,1780054260000,-158.62281654,0.00028561,7]
[423317211,1780054260000,-55932.65,0.000286,14]
[423317219,1780054260000,-1338.33626677,0.00028646,15]
[423317221,1780054260000,-4866.73,0.00028686,7]
[423317212,1780054260000,-182.53065885,0.00028601,2]
[423317215,1780054260000,-205.56743579,0.00028601,7]
[423317216,1780054260000,-163.0,0.00028639,3]
[423317217,1780054260000,-1590.0,0.00028639,3]
[423317218,1780054260000,-175.0,0.00028643,120]
[423317213,1780054260000,-195.33746677,0.00028601,7]
[423317214,1780054260000,-403.14985737,0.00028601,7]
[423317223,1780054260000,-2167.96,0.00028687,7]
[423317222,1780054260000,-2167.71,0.00028686,7]
[423317224,1780054260000,-4323.53,0.00028687,7]
[423317198,1780054260000,-191.11977874,0.00028561,7]
[423317210,1780054260000,-3699.58,0.000286,7]
[423317194,1780054260000,-265.2436546,0.00028561,7]
[423317176,1780054260000,-195.40640088,0.00028524,7]
[423317189,1780054260000,-2167.96,0.00028531,30]
[423317174,1780054260000,-155.85783112,0.00028524,7]
[423317169,1780054260000,-162.99462494,0.00028524,7]
[423317173,1780054260000,-172.74046348,0.00028524,7]
[423317171,1780054260000,-161.32317455,0.00028524,7]
[423317170,1780054260000,-190.8630936,0.00028524,7]
[423317172,1780054260000,-177.7100221,0.00028524,7]
[423317227,1780054260000,-500.0,0.00028767,7]
[423317185,1780054260000,-3100.68,0.00028528,30]
[423317175,1780054260000,-181.37326736,0.00028524,7]
[423317178,1780054260000,-167.39967463,0.00028524,7]
[423317186,1780054260000,-172.1463243,0.00028529,7]
[423317183,1780054260000,-152.28468194,0.00028525,7]
[423317193,1780054260000,-179.45840051,0.00028555,7]
[423317181,1780054260000,-181.11366582,0.00028525,7]
[423317180,1780054260000,-159.08763722,0.00028525,7]
[423317184,1780054260000,-150.49798279,0.00028525,7]
[423317177,1780054260000,-186.07454996,0.00028524,7]
[423317179,1780054260000,-156.22241989,0.00028525,7]
[423317187,1780054260000,-4866.73,0.00028529,30]
[423317196,1780054260000,-340.76534418,0.00028561,7]
[423317197,1780054260000,-186.87451899,0.00028561,5]
[423317188,1780054260000,-2167.71,0.0002853,30]
[423317195,1780054260000,-174.85460809,0.00028561,7]
[423317190,1780054260000,-4323.53,0.00028531,30]
[423317192,1780054260000,-152.0,0.00028538,24]
[423317191,1780054260000,-4340.16,0.00028533,30]
[423317182,1780054260000,-152.74726053,0.00028525,7]
[423317225,1780054260000,-4340.16,0.00028688,7]
[423317220,1780054260000,-3100.68,0.00028685,7]
[423317228,1780054260000,-209.09056759,0.000288,10]
[423317260,1780054260000,-2013.0843362,0.00029,2]
[423317257,1780054260000,-2000.0,0.00029,120]
[423317262,1780054260000,-510.66835475,0.00029,2]
[423317261,1780054260000,-643.98489832,0.00029,2]
[423317267,1780054260000,-200.0,0.00029,2]
[423317266,1780054260000,-1915.0,0.00029,2]
[423317263,1780054260000,-2285.6951678,0.00029,120]
[423317265,1780054260000,-150.0,0.00029,120]
[423317264,1780054260000,-76619.36389828,0.00029,2]
[423317268,1780054260000,-200.0,0.00029,2]
[423317275,1780054260000,-200.0,0.00029,2]
[423317270,1780054260000,-200.0,0.00029,2]
[423317259,1780054260000,-219.53728179,0.00029,2]
[423317278,1780054260000,-200.0,0.00029,2]
[423317273,1780054260000,-200.0,0.00029,2]
[423317269,1780054260000,-200.0,0.00029,2]
[423317272,1780054260000,-200.0,0.00029,2]
[423317274,1780054260000,-200.0,0.00029,2]
[423317271,1780054260000,-200.0,0.00029,2]
[423317279,1780054260000,-196.97,0.00029,2]
[423317282,1780054260000,-735.0,0.00029,2]
[423317281,1780054260000,-1200.0,0.00029,2]
[423317283,1780054260000,-249.17,0.00029,2]
[423317280,1780054260000,-1443.48,0.00029,2]
[423317284,1780054260000,-2500.0,0.00029,2]
[423317226,1780054260000,-2198.0,0.00028767,120]
[423317277,1780054260000,-200.0,0.00029,2]
[423317258,1780054260000,-542.03489599,0.00029,2]
[423317276,1780054260000,-200.0,0.00029,2]
[423317253,1780054260000,-743.86583086,0.00029,2]
[423317232,1780054260000,-2167.96,0.00028843,2]
[423317256,1780054260000,-273.3521427,0.00029,2]
[423317229,1780054260000,-152.0,0.00028819,25]
[423317230,1780054260000,-3100.68,0.00028842,2]
[423317231,1780054260000,-4866.73,0.00028843,2]
[423317233,1780054260000,-4323.53,0.00028843,2]
[423317234,1780054260000,-2167.71,0.00028843,2]
[423317238,1780054260000,-4159.0,0.00028856,2]
[423317235,1780054260000,-4340.16,0.00028844,2]
[423317239,1780054260000,-2318.0,0.00028889,3]
[423317236,1780054260000,-150.0,0.00028855,2]
[423317242,1780054260000,-200.0,0.00028901,2]
[423317241,1780054260000,-200.0,0.000289,2]
[423317237,1780054260000,-150.0,0.00028855,2]
[423317240,1780054260000,-150.0,0.00028897,2]
[423317252,1780054260000,-1142.85,0.00029,2]
[423317244,1780054260000,-167.00015065,0.00028971,2]
[423317254,1780054260000,-2382.26336414,0.00029,2]
[423317249,1780054260000,-574.55,0.00029,2]
[423317250,1780054260000,-574.55,0.00029,2]
[423317251,1780054260000,-1013.15,0.00029,2]
[423317255,1780054260000,-152.9,0.00029,2]
[423317248,1780054260000,-574.58,0.00029,2]
[423317247,1780054260000,-574.55,0.00029,2]
[423317246,1780054260000,-151.0,0.00028997,7]
[423317243,1780054260000,-500.0,0.00028912,14]
[423317245,1780054260000,-188.44606373,0.00028971,2]
[423317327,1780054261000,-1400.23,0.00029,30]
[423317322,1780054261000,-1000.0,0.00029,2]
[423317323,1780054261000,-1000.0,0.00029,2]
[423317324,1780054261000,-1400.23,0.00029,30]
[423317321,1780054261000,-600.0,0.00029,2]
[423317319,1780054261000,-744.78,0.00029,2]